Workbook

Sheet 开始
A1: 投资跟踪表 | B1: 投资跟踪表
A3: 投资跟踪表模板将允许跟踪投资和资产分配。Excel 股票数据类型将使投资组合与当前价格和资产详细信息保持同步。有投资组合和资产分配两个工作表，如下所述。注意：Excel 股票数据类型是仅限 Office 365 订阅的功能。
A5: 投资组合 | B5: 投资组合
A6: 在示例中添加投资，键入股票代码、公司名称或基金名称，或在其他行上添加更多内容。选择资产类别并输入股份数额。
A7: 单击“添加列”按钮添加股票代码或交易所等其他列。
A21: 要刷新数据，请单击任意股票。在“数据”选项卡的“查询和连接”组中，单击“全部刷新”或按 Ctrl+Alt+F5。
A26: 资产分配 | B26: 资产分配
A28: 更改“类别”和“我的目标值”以自定义投资组合目标。
A29: 资产类别超出“阈值”时，金额将以黄色突出显示。

Sheet 投资组合
A1: 投资跟踪表 | B1: 投资跟踪表
A3: 投资组合 | B3: 投资组合
A5: 在单元格 B5:I11 中有包含现有股票的表格，总计行位于第 12 行。在单元格 B5:B11 中输入公司名称，然后转到“数据”>“刷新”​​，或按 Ctrl+Alt+F5。 | B5: 公司 | C5: 类别 | D5: 股份 | E5: 价格 | F5: 变化 | G5: 变化（百分比） | H5: 投资组合百分比 | I5: 面额
A6: 在示例中添加投资，键入股票代码、公司名称或基金名称，或在其他行上添加更多内容。选择资产类别并输入股份数额。 | C6: 美国股票 | D6: 1,200 | E6: =_FV(TablePortfolio[[#This Row],[公司]],"Price") -> ¥116.77 | F6: =_FV(TablePortfolio[[#This Row],[公司]],"Price") -> ¥116.77 | G6: =_FV(TablePortfolio[[#This Row],[公司]],"Change (%)",TRUE) -> -0.97% | H6: =IFERROR(I6/SUBTOTAL(109,TablePortfolio[面额]),"") -> 62% | I6: =D6 * E6 -> ¥140,124.00
A7: 单击“添加列”按钮添加股票代码或交易所等其他列。 | C7: 债券 | D7: 1,300 | E7: =_FV(TablePortfolio[[#This Row],[公司]],"Price") -> ¥10.56 | F7: =_FV(TablePortfolio[[#This Row],[公司]],"Price") -> ¥10.56 | G7: =_FV(TablePortfolio[[#This Row],[公司]],"Change (%)",TRUE) -> 0.19% | H7: =IFERROR(I7/SUBTOTAL(109,TablePortfolio[面额]),"") -> 6% | I7: ¥13,728.00
A8: 要刷新数据，请单击任意股票。在“数据”选项卡的“查询和连接”组中，单击“全部刷新”或按 Ctrl+Alt+F5。 | C8: 国际股票 | D8: 1,200 | E8: =_FV(TablePortfolio[[#This Row],[公司]],"Price") -> ¥28.06 | F8: =_FV(TablePortfolio[[#This Row],[公司]],"Price") -> ¥28.06 | G8: =_FV(TablePortfolio[[#This Row],[公司]],"Change (%)",TRUE) -> 0.94% | H8: =IFERROR(I8/SUBTOTAL(109,TablePortfolio[面额]),"") -> 15% | I8: ¥33,672.00
C9: 现金 | D9: 10,000 | E9: =_FV(TablePortfolio[[#This Row],[公司]],"Price") -> ¥1.00 | F9: =_FV(TablePortfolio[[#This Row],[公司]],"Price") -> ¥1.00 | G9: =_FV(TablePortfolio[[#This Row],[公司]],"Change (%)",TRUE) -> 0.00% | H9: =IFERROR(I9/SUBTOTAL(109,TablePortfolio[面额]),"") -> 4% | I9: ¥10,000.00
C10: 房地产 | D10: 125 | E10: =_FV(TablePortfolio[[#This Row],[公司]],"Price") -> ¥121.53 | F10: =_FV(TablePortfolio[[#This Row],[公司]],"Price") -> ¥121.53 | G10: =_FV(TablePortfolio[[#This Row],[公司]],"Change (%)",TRUE) -> -0.34% | H10: =IFERROR(I10/SUBTOTAL(109,TablePortfolio[面额]),"") -> 7% | I10: ¥15,191.25
C11: 商品 | D11: 100 | E11: =_FV(TablePortfolio[[#This Row],[公司]],"Price") -> ¥123.65 | F11: =_FV(TablePortfolio[[#This Row],[公司]],"Price") -> ¥123.65 | G11: =_FV(TablePortfolio[[#This Row],[公司]],"Change (%)",TRUE) -> -0.52% | H11: =IFERROR(I11/SUBTOTAL(109,TablePortfolio[面额]),"") -> 5% | I11: ¥12,365.00
B12: 汇总 | I12: =IFERROR(SUBTOTAL(109,TablePortfolio[面额]), "") -> ¥225,080.25

Sheet 资产分配
A1: 投资跟踪表 | B1: 投资跟踪表
A3: 资产分配 | B3: 资产分配
A6: 在第 19-25 行中有一个条形图，可以直观地比较每个类别中投资的实际值百分比与下表中设置的目标值。
A19: 此处有一个表格，可以计算每个类别中投资的实际值百分比，并将其与目标值进行比较。 | B19: 类别 | C19: 我的目标值 | D19: 实际值 | E19: 差额 | F19: 阈值 | G19: 面额
A20: 该表将自动填充单元格 B19:G25 中的投资组合表中的投资类别。在单元格 C20:C25 中输入每种投资类别的目标值，然后转到“数据”>“刷新”，或按Ctrl+Alt+F5。 | B20: 美国股票 | C20: 55% | D20: =IFERROR(G20/SUBTOTAL(109,TableAssetAllocation[面额]),"") -> 62% | E20: =D20 - C20 -> 7.3% | F20: =MIN(5%, $C20 * 25%) -> 5% | G20: =SUMIF(TablePortfolio[类别], B20, TablePortfolio[面额]) -> ¥140,124.00
A21: 资产类别超出“阈值”时，金额将以黄色突出显示。 | B21: 国际股票 | C21: 20% | D21: =IFERROR(G21/SUBTOTAL(109,TableAssetAllocation[面额]),"") -> 15% | E21: -5.0% | F21: 5% | G21: =SUMIF(TablePortfolio[类别], B21, TablePortfolio[面额]) -> ¥33,672.00
B22: 债券 | C22: 10% | D22: =IFERROR(G22/SUBTOTAL(109,TableAssetAllocation[面额]),"") -> 6% | E22: -3.9% | F22: 3% | G22: =SUMIF(TablePortfolio[类别], B22, TablePortfolio[面额]) -> ¥13,728.00
B23: 现金 | C23: 5% | D23: =IFERROR(G23/SUBTOTAL(109,TableAssetAllocation[面额]),"") -> 4% | E23: -0.6% | F23: 1% | G23: =SUMIF(TablePortfolio[类别], B23, TablePortfolio[面额]) -> ¥10,000.00
B24: 房地产 | C24: 5% | D24: =IFERROR(G24/SUBTOTAL(109,TableAssetAllocation[面额]),"") -> 7% | E24: 1.7% | F24: 1% | G24: =SUMIF(TablePortfolio[类别], B24, TablePortfolio[面额]) -> ¥15,191.25
B25: 商品 | C25: 5% | D25: =IFERROR(G25/SUBTOTAL(109,TableAssetAllocation[面额]),"") -> 5% | E25: 0.5% | F25: 1% | G25: =SUMIF(TablePortfolio[类别], B25, TablePortfolio[面额]) -> ¥12,365.00
